[Event "Early-Titled-Tuesday-Blitz-September-26-2023"]
[Site "Chess.com"]
[Date "2023.09.26"]
[Round "1"]
[White "SRob2003"]
[Black "alacritous"]
[Result "1-0"]
[WhiteElo "2618"]
[BlackElo "2304"]
[TimeControl "180+1"]
[EndTime "8:07:31 PDT"]
[Termination "SRob2003 won on time"]

1. c4 {[%clk 0:03:00.6]} 1... Nf6 {[%clk 0:02:58.6]} 2. g3 {[%clk 0:03:01.5]}
2... g6 {[%clk 0:02:58.2]} 3. Bg2 {[%clk 0:02:53.7]} 3... Bg7 {[%clk 0:02:58.5]}
4. Nc3 {[%clk 0:02:54.4]} 4... O-O {[%clk 0:02:58]} 5. d3 {[%clk 0:02:54.6]}
5... d6 {[%clk 0:02:57.7]} 6. Nf3 {[%clk 0:02:55.1]} 6... c5 {[%clk 0:02:57.6]}
7. O-O {[%clk 0:02:49.8]} 7... Nc6 {[%clk 0:02:57.1]} 8. Rb1 {[%clk 0:02:49.2]}
8... d5 {[%clk 0:02:50.1]} 9. cxd5 {[%clk 0:02:43.1]} 9... Nxd5 {[%clk
0:02:49.3]} 10. Nxd5 {[%clk 0:02:44]} 10... Qxd5 {[%clk 0:02:48.3]} 11. a3
{[%clk 0:02:44.9]} 11... Qd6 {[%clk 0:02:34]} 12. Qa4 {[%clk 0:02:39.5]} 12...
b6 {[%clk 0:02:18.6]} 13. Bf4 {[%clk 0:02:39.1]} 13... e5 {[%clk 0:02:17.3]} 14.
Nxe5 {[%clk 0:02:38.8]} 14... Bxe5 {[%clk 0:02:15.6]} 15. Qxc6 {[%clk
0:02:30.2]} 15... Qxc6 {[%clk 0:02:02.3]} 16. Bxc6 {[%clk 0:02:31.1]} 16... Bxf4
{[%clk 0:02:01.8]} 17. Bxa8 {[%clk 0:02:30.9]} 17... Be5 {[%clk 0:02:01.2]} 18.
Bg2 {[%clk 0:02:28.1]} 18... Be6 {[%clk 0:02:00.7]} 19. b4 {[%clk 0:02:26.9]}
19... Rc8 {[%clk 0:01:59.8]} 20. Rfc1 {[%clk 0:02:18]} 20... Ba2 {[%clk
0:01:58.4]} 21. b5 {[%clk 0:02:14.6]} 21... Bxb1 {[%clk 0:01:57.5]} 22. Rxb1
{[%clk 0:02:15.5]} 22... Rd8 {[%clk 0:01:54.9]} 23. Kf1 {[%clk 0:02:05.7]} 23...
Rd4 {[%clk 0:01:53.9]} 24. Ke1 {[%clk 0:01:44.2]} 24... Ra4 {[%clk 0:01:52.9]}
25. Rb3 {[%clk 0:01:44.1]} 25... Kf8 {[%clk 0:01:50.3]} 26. Kd2 {[%clk
0:01:23.2]} 26... Ke7 {[%clk 0:01:48.4]} 27. f4 {[%clk 0:01:20]} 27... Bg7
{[%clk 0:01:40.4]} 28. Bd5 {[%clk 0:01:19.6]} 28... f5 {[%clk 0:01:28.3]} 29. e3
{[%clk 0:01:15.3]} 29... h6 {[%clk 0:01:17.7]} 30. h4 {[%clk 0:01:02.4]} 30...
Bf6 {[%clk 0:01:15.3]} 31. Bc4 {[%clk 0:00:52.5]} 31... Bg7 {[%clk 0:01:01]} 32.
Ke2 {[%clk 0:00:51.8]} 32... Bf6 {[%clk 0:00:59.6]} 33. Kf3 {[%clk 0:00:52.4]}
33... Kd6 {[%clk 0:00:51.5]} 34. Bf7 {[%clk 0:00:49.8]} 34... g5 {[%clk
0:00:50.5]} 35. fxg5 {[%clk 0:00:50.1]} 35... hxg5 {[%clk 0:00:50.2]} 36. h5
{[%clk 0:00:50.8]} 36... Ke7 {[%clk 0:00:37.8]} 37. Bc4 {[%clk 0:00:49.3]} 37...
Kf8 {[%clk 0:00:36.9]} 38. g4 {[%clk 0:00:46.1]} 38... fxg4+ {[%clk 0:00:32.4]}
39. Kxg4 {[%clk 0:00:47]} 39... Kg7 {[%clk 0:00:29]} 40. Kf5 {[%clk 0:00:46.8]}
40... Bd8 {[%clk 0:00:19.7]} 41. e4 {[%clk 0:00:43.7]} 41... Kh6 {[%clk
0:00:14.1]} 42. e5 {[%clk 0:00:42.5]} 42... Kxh5 {[%clk 0:00:12.5]} 43. e6
{[%clk 0:00:41]} 43... Kh6 {[%clk 0:00:11]} 44. Ke5 {[%clk 0:00:36.5]} 44... Kg7
{[%clk 0:00:10.4]} 45. Kd6 {[%clk 0:00:36.5]} 45... Kf6 {[%clk 0:00:10.4]} 46.
Kd7 {[%clk 0:00:35.7]} 46... Be7 {[%clk 0:00:10.8]} 47. Rb1 {[%clk 0:00:35.8]}
47... Bf8 {[%clk 0:00:02.9]} 48. Rf1+ {[%clk 0:00:36.3]} 48... Kg7 {[%clk
0:00:02.9]} 49. Rf7+ {[%clk 0:00:34.8]} 49... Kg8 {[%clk 0:00:02.5]} 50. Rf5
{[%clk 0:00:32.7]} 50... g4 {[%clk 0:00:01.2]} 51. e7+ {[%clk 0:00:33.1]} 1-0

[Event "Early-Titled-Tuesday-Blitz-September-26-2023"]
[Site "Chess.com"]
[Date "2023.09.26"]
[Round "1"]
[White "Cambek64"]
[Black "AlexPapasimakopoulos"]
[Result "1/2-1/2"]
[WhiteElo "2467"]
[BlackElo "2752"]
[TimeControl "180+1"]
[EndTime "8:07:32 PDT"]
[Termination "Game drawn by repetition"]

1. e4 {[%clk 0:03:00.9]} 1... e6 {[%clk 0:02:16.3]} 2. d3 {[%clk 0:02:56.8]}
2... d5 {[%clk 0:02:15.2]} 3. Qe2 {[%clk 0:02:56.9]} 3... Ne7 {[%clk 0:02:03.1]}
4. f4 {[%clk 0:02:53.5]} 4... c5 {[%clk 0:02:01]} 5. g3 {[%clk 0:02:53.5]} 5...
Nbc6 {[%clk 0:02:00.8]} 6. Nf3 {[%clk 0:02:52.9]} 6... g6 {[%clk 0:01:59.6]} 7.
Bg2 {[%clk 0:02:52.2]} 7... Bg7 {[%clk 0:01:59.2]} 8. e5 {[%clk 0:02:48.7]} 8...
b5 {[%clk 0:01:56.3]} 9. O-O {[%clk 0:02:46.2]} 9... a5 {[%clk 0:01:55.7]} 10.
a4 {[%clk 0:02:44.7]} 10... b4 {[%clk 0:01:55.5]} 11. Be3 {[%clk 0:02:42.3]}
11... Qb6 {[%clk 0:01:52.3]} 12. Nbd2 {[%clk 0:02:41]} 12... Nf5 {[%clk
0:01:50.7]} 13. Bf2 {[%clk 0:02:40.8]} 13... h5 {[%clk 0:01:50]} 14. Nb3 {[%clk
0:02:32.1]} 14... Ncd4 {[%clk 0:01:34.4]} 15. Nfxd4 {[%clk 0:02:19]} 15... cxd4
{[%clk 0:01:29.4]} 16. Bh3 {[%clk 0:02:15.6]} 16... Ne3 {[%clk 0:01:23.4]} 17.
Rfe1 {[%clk 0:02:13.7]} 17... h4 {[%clk 0:01:16.1]} 18. Bxe3 {[%clk 0:02:00.2]}
18... dxe3 {[%clk 0:01:12.4]} 19. Bg2 {[%clk 0:01:54.8]} 19... hxg3 {[%clk
0:01:09.8]} 20. hxg3 {[%clk 0:01:54.2]} 20... g5 {[%clk 0:01:00]} 21. Qxe3
{[%clk 0:01:52.3]} 21... Qxe3+ {[%clk 0:00:58.9]} 22. Rxe3 {[%clk 0:01:52.9]}
22... gxf4 {[%clk 0:00:57]} 23. gxf4 {[%clk 0:01:53.6]} 23... Rh4 {[%clk
0:00:52.5]} 24. f5 {[%clk 0:01:44.8]} 24... Ra7 {[%clk 0:00:20.1]} 25. f6 {[%clk
0:01:38.7]} 25... Bh6 {[%clk 0:00:19.7]} 26. Rh3 {[%clk 0:01:35.5]} 26... Rxh3
{[%clk 0:00:19.4]} 27. Bxh3 {[%clk 0:01:34.9]} 27... Bf4 {[%clk 0:00:18.8]} 28.
Re1 {[%clk 0:01:23]} 28... Ba6 {[%clk 0:00:17.5]} 29. Kf2 {[%clk 0:01:13.5]}
29... Bc8 {[%clk 0:00:17.2]} 30. Kf3 {[%clk 0:00:59.8]} 30... Bh6 {[%clk
0:00:17.3]} 31. Bf1 {[%clk 0:00:53.8]} 31... Bd7 {[%clk 0:00:17.3]} 32. Nc5
{[%clk 0:00:51.7]} 32... Rc7 {[%clk 0:00:16.2]} 33. d4 {[%clk 0:00:51.2]} 33...
Bf8 {[%clk 0:00:15.6]} 34. Nxd7 {[%clk 0:00:50.1]} 34... Kxd7 {[%clk 0:00:13.6]}
35. Bd3 {[%clk 0:00:49.2]} 35... Bh6 {[%clk 0:00:10.7]} 36. Rh1 {[%clk
0:00:46.3]} 36... Bg5 {[%clk 0:00:08.9]} 37. Rh8 {[%clk 0:00:38.4]} 37... Kc6
{[%clk 0:00:08.6]} 38. Ra8 {[%clk 0:00:34]} 38... Bc1 {[%clk 0:00:08.4]} 39. b3
{[%clk 0:00:32.4]} 39... Bb2 {[%clk 0:00:08]} 40. Ke3 {[%clk 0:00:32.8]} 40...
Bc1+ {[%clk 0:00:08.3]} 41. Ke2 {[%clk 0:00:30.4]} 41... Bb2 {[%clk 0:00:08.9]}
42. Ke3 {[%clk 0:00:19]} 42... Bc1+ {[%clk 0:00:09.2]} 43. Kf2 {[%clk
0:00:18.5]} 43... Bb2 {[%clk 0:00:07.5]} 44. Ke3 {[%clk 0:00:17.2]} 1/2-1/2

[Event "Early-Titled-Tuesday-Blitz-September-26-2023"]
[Site "Chess.com"]
[Date "2023.09.26"]
[Round "1"]
[White "Honiex"]
[Black "Witty_Alien"]
[Result "1-0"]
[WhiteElo "2569"]
[BlackElo "2198"]
[TimeControl "180+1"]
[EndTime "8:07:32 PDT"]
[Termination "Honiex won on time"]

1. d4 {[%clk 0:03:00.2]} 1... d5 {[%clk 0:02:55.4]} 2. Nc3 {[%clk 0:02:52.9]}
2... c6 {[%clk 0:02:53.7]} 3. Bf4 {[%clk 0:02:52.6]} 3... Nf6 {[%clk 0:02:47.9]}
4. e3 {[%clk 0:02:52.6]} 4... Bf5 {[%clk 0:02:40.6]} 5. Nf3 {[%clk 0:02:52.4]}
5... e6 {[%clk 0:02:40.7]} 6. Ne5 {[%clk 0:02:51.9]} 6... Nbd7 {[%clk
0:02:39.2]} 7. g4 {[%clk 0:02:51.5]} 7... Be4 {[%clk 0:02:33.5]} 8. f3 {[%clk
0:02:51.2]} 8... Bg6 {[%clk 0:02:28.2]} 9. h4 {[%clk 0:02:51.1]} 9... Qb6 {[%clk
0:01:54.8]} 10. Rb1 {[%clk 0:02:49]} 10... Nxe5 {[%clk 0:01:37.1]} 11. dxe5
{[%clk 0:02:48.6]} 11... Nd7 {[%clk 0:01:37.7]} 12. h5 {[%clk 0:02:46.6]} 12...
Nxe5 {[%clk 0:01:17.1]} 13. hxg6 {[%clk 0:02:40.3]} 13... Nxg6 {[%clk
0:01:15.9]} 14. Qd2 {[%clk 0:02:31.2]} 14... e5 {[%clk 0:01:02.5]} 15. Bg3
{[%clk 0:02:29.7]} 15... O-O-O {[%clk 0:00:49.3]} 16. Bd3 {[%clk 0:02:27.1]}
16... d4 {[%clk 0:00:42.6]} 17. Bf5+ {[%clk 0:02:24.2]} 17... Kb8 {[%clk
0:00:39.9]} 18. exd4 {[%clk 0:02:08.2]} 18... Ka8 {[%clk 0:00:38.1]} 19. d5
{[%clk 0:01:59.9]} 19... Bb4 {[%clk 0:00:27.6]} 20. Bf2 {[%clk 0:01:52.3]} 20...
Qa5 {[%clk 0:00:23.1]} 21. a3 {[%clk 0:01:48.7]} 21... Bxc3 {[%clk 0:00:15.8]}
22. Qxc3 {[%clk 0:01:49.6]} 22... Qxd5 {[%clk 0:00:15.4]} 23. Be4 {[%clk
0:01:47.3]} 23... Qd7 {[%clk 0:00:13.5]} 24. O-O {[%clk 0:01:39.6]} 24... Nf4
{[%clk 0:00:11.9]} 25. Qc5 {[%clk 0:01:31.1]} 25... Nh3+ {[%clk 0:00:10.5]} 26.
Kh2 {[%clk 0:01:28.5]} 26... Nxf2 {[%clk 0:00:10.9]} 27. Qxf2 {[%clk 0:01:26.2]}
27... h5 {[%clk 0:00:11]} 28. g5 {[%clk 0:01:24.8]} 28... f5 {[%clk 0:00:11.5]}
29. gxf6 {[%clk 0:01:22.4]} 29... gxf6 {[%clk 0:00:12]} 30. Qe2 {[%clk
0:01:02.8]} 30... f5 {[%clk 0:00:11.4]} 31. Rbd1 {[%clk 0:01:02.8]} 31... Qc7
{[%clk 0:00:09.9]} 32. Bxf5 {[%clk 0:00:55.4]} 32... e4+ {[%clk 0:00:09.6]} 33.
Kh1 {[%clk 0:00:56]} 33... exf3 {[%clk 0:00:09.5]} 34. Qxf3 {[%clk 0:00:54.7]}
34... Rdf8 {[%clk 0:00:09.2]} 35. Rd7 {[%clk 0:00:38.5]} 35... Qe5 {[%clk
0:00:08.8]} 36. Qd3 {[%clk 0:00:28.5]} 36... a6 {[%clk 0:00:06.1]} 37. Bh3
{[%clk 0:00:24.1]} 37... Rxf1+ {[%clk 0:00:06]} 38. Bxf1 {[%clk 0:00:25]} 38...
Ka7 {[%clk 0:00:03.7]} 39. Qd4+ {[%clk 0:00:24.6]} 39... Qxd4 {[%clk 0:00:03.2]}
40. Rxd4 {[%clk 0:00:24.9]} 40... Re8 {[%clk 0:00:03.2]} 41. Bg2 {[%clk
0:00:24.7]} 41... Re2 {[%clk 0:00:02.3]} 42. Rc4 {[%clk 0:00:24]} 42... Kb6
{[%clk 0:00:02.3]} 43. Kh2 {[%clk 0:00:23.7]} 43... Kb5 {[%clk 0:00:02.4]} 44.
Rc3 {[%clk 0:00:23.7]} 44... b6 {[%clk 0:00:02.4]} 45. Kh3 {[%clk 0:00:23.4]}
45... c5 {[%clk 0:00:02.8]} 46. Bf1 {[%clk 0:00:22.8]} 1-0

[Event "Early-Titled-Tuesday-Blitz-September-26-2023"]
[Site "Chess.com"]
[Date "2023.09.26"]
[Round "1"]
[White "TheRigos"]
[Black "KatakuriDono"]
[Result "0-1"]
[WhiteElo "2598"]
[BlackElo "2332"]
[TimeControl "180+1"]
[EndTime "8:07:33 PDT"]
[Termination "KatakuriDono won by resignation"]

1. d4 {[%clk 0:02:51.7]} 1... d5 {[%clk 0:02:59.9]} 2. Nf3 {[%clk 0:02:30.7]}
2... Nf6 {[%clk 0:02:59.4]} 3. Bf4 {[%clk 0:02:25.5]} 3... c5 {[%clk 0:02:58.6]}
4. e3 {[%clk 0:02:08.7]} 4... Nc6 {[%clk 0:02:57.6]} 5. Nbd2 {[%clk 0:02:07.2]}
5... e6 {[%clk 0:02:57.5]} 6. c3 {[%clk 0:01:57.8]} 6... cxd4 {[%clk 0:02:57.4]}
7. exd4 {[%clk 0:01:57.4]} 7... Nh5 {[%clk 0:02:57.5]} 8. Be3 {[%clk 0:01:55]}
8... Bd6 {[%clk 0:02:57.1]} 9. g3 {[%clk 0:01:44.5]} 9... f5 {[%clk 0:02:54.5]}
10. Ne5 {[%clk 0:01:35.8]} 10... Nf6 {[%clk 0:02:54.1]} 11. Bb5 {[%clk
0:01:31.3]} 11... Bd7 {[%clk 0:02:44.3]} 12. Bxc6 {[%clk 0:01:28.8]} 12... bxc6
{[%clk 0:02:40.3]} 13. Ndf3 {[%clk 0:01:29.4]} 13... O-O {[%clk 0:02:35]} 14.
O-O {[%clk 0:01:27.8]} 14... Be8 {[%clk 0:02:21.4]} 15. Qc2 {[%clk 0:01:19.6]}
15... Ne4 {[%clk 0:02:18]} 16. Ne1 {[%clk 0:01:03.9]} 16... c5 {[%clk 0:02:14]}
17. N1d3 {[%clk 0:01:00.5]} 17... c4 {[%clk 0:02:10.4]} 18. Nf4 {[%clk
0:01:00.6]} 18... Qe7 {[%clk 0:02:01.3]} 19. f3 {[%clk 0:01:00.7]} 19... Nf6
{[%clk 0:01:56.1]} 20. Rae1 {[%clk 0:01:01.2]} 20... Bxe5 {[%clk 0:01:44.8]} 21.
dxe5 {[%clk 0:01:00.5]} 21... Nd7 {[%clk 0:01:45.4]} 22. Bd4 {[%clk 0:00:58.9]}
22... a5 {[%clk 0:01:43.6]} 23. b3 {[%clk 0:00:52.4]} 23... cxb3 {[%clk
0:01:38.9]} 24. axb3 {[%clk 0:00:53.3]} 24... g5 {[%clk 0:01:26.2]} 25. Ng2
{[%clk 0:00:46.1]} 25... Bg6 {[%clk 0:01:21.2]} 26. f4 {[%clk 0:00:46.3]} 26...
Nc5 {[%clk 0:01:20.4]} 27. fxg5 {[%clk 0:00:41.3]} 27... Ne4 {[%clk 0:01:17.7]}
28. Nf4 {[%clk 0:00:41.4]} 28... Nxg5 {[%clk 0:01:10.1]} 29. Ra1 {[%clk
0:00:27.6]} 29... Rfb8 {[%clk 0:01:02]} 30. Ra2 {[%clk 0:00:20]} 30... Rc8
{[%clk 0:00:58.3]} 31. Rfa1 {[%clk 0:00:19.3]} 31... Nf3+ {[%clk 0:00:58.3]} 32.
Kh1 {[%clk 0:00:18.1]} 32... Nxd4 {[%clk 0:00:58.7]} 33. Qd1 {[%clk 0:00:18.6]}
33... Nb5 {[%clk 0:00:52.5]} 34. c4 {[%clk 0:00:19.5]} 34... Nc3 {[%clk
0:00:48.8]} 35. Qf3 {[%clk 0:00:17.1]} 35... Nxa2 {[%clk 0:00:48.5]} 36. cxd5
{[%clk 0:00:18]} 36... exd5 {[%clk 0:00:44.2]} 37. Nxd5 {[%clk 0:00:18.9]} 37...
Qxe5 {[%clk 0:00:42.6]} 38. Rxa2 {[%clk 0:00:18.7]} 38... Rc1+ {[%clk
0:00:39.9]} 39. Kg2 {[%clk 0:00:18.3]} 39... Rac8 {[%clk 0:00:39.3]} 40. Ne3
{[%clk 0:00:17.6]} 40... R1c3 {[%clk 0:00:36]} 41. Re2 {[%clk 0:00:16.5]} 41...
Rxb3 {[%clk 0:00:29.6]} 42. Qd5+ {[%clk 0:00:15.8]} 42... Qxd5+ {[%clk
0:00:29.1]} 43. Nxd5 {[%clk 0:00:16.7]} 43... Rd8 {[%clk 0:00:23.7]} 44. Nf4
{[%clk 0:00:14.9]} 44... a4 {[%clk 0:00:21.6]} 45. Re7 {[%clk 0:00:15.4]} 45...
a3 {[%clk 0:00:20]} 46. Ra7 {[%clk 0:00:15.9]} 46... Rb2+ {[%clk 0:00:19.2]} 47.
Kh3 {[%clk 0:00:16.5]} 47... a2 {[%clk 0:00:20.1]} 48. Kh4 {[%clk 0:00:16.3]}
48... Rdd2 {[%clk 0:00:20]} 49. Kg5 {[%clk 0:00:13.5]} 49... Rd1 {[%clk
0:00:19.4]} 50. Kf6 {[%clk 0:00:13.6]} 50... Rb6+ {[%clk 0:00:19.6]} 51. Ne6
{[%clk 0:00:13.2]} 51... Rxe6+ {[%clk 0:00:18.6]} 52. Kxe6 {[%clk 0:00:14.1]}
52... a1=Q {[%clk 0:00:19]} 0-1

[Event "Early-Titled-Tuesday-Blitz-September-26-2023"]
[Site "Chess.com"]
[Date "2023.09.26"]
[Round "1"]
[White "Balla_Tamas"]
[Black "Fy_Rakotomaharo"]
[Result "0-1"]
[WhiteElo "2415"]
[BlackElo "2708"]
[TimeControl "180+1"]
[EndTime "8:07:35 PDT"]
[Termination "Fy_Rakotomaharo won by resignation"]

1. e4 {[%clk 0:03:00.9]} 1... e5 {[%clk 0:02:59.2]} 2. Nf3 {[%clk 0:03:00.3]}
2... Nf6 {[%clk 0:02:59.8]} 3. Nxe5 {[%clk 0:03:00.1]} 3... d6 {[%clk
0:03:00.4]} 4. Nf3 {[%clk 0:03:00.2]} 4... Nxe4 {[%clk 0:03:01]} 5. Nc3 {[%clk
0:03:00.9]} 5... Nxc3 {[%clk 0:03:00.9]} 6. dxc3 {[%clk 0:03:01.8]} 6... Be7
{[%clk 0:03:01.6]} 7. Bd3 {[%clk 0:03:01.6]} 7... Nd7 {[%clk 0:03:02.3]} 8. Bf4
{[%clk 0:03:01.5]} 8... Nc5 {[%clk 0:03:01.4]} 9. O-O {[%clk 0:02:54.9]} 9...
O-O {[%clk 0:03:00.5]} 10. Qd2 {[%clk 0:02:52.2]} 10... Nxd3 {[%clk 0:02:54.3]}
11. cxd3 {[%clk 0:02:50.4]} 11... Bg4 {[%clk 0:02:54.6]} 12. Nd4 {[%clk
0:02:44.3]} 12... Qd7 {[%clk 0:02:54.7]} 13. h3 {[%clk 0:02:43.8]} 13... Bh5
{[%clk 0:02:54.2]} 14. Rfe1 {[%clk 0:02:43.5]} 14... c5 {[%clk 0:02:47.3]} 15.
Nc2 {[%clk 0:02:40.2]} 15... Rfe8 {[%clk 0:02:44.1]} 16. d4 {[%clk 0:02:40.1]}
16... Qc6 {[%clk 0:02:37.5]} 17. dxc5 {[%clk 0:02:34.7]} 17... dxc5 {[%clk
0:02:37.3]} 18. Bg5 {[%clk 0:02:34.6]} 18... Bf8 {[%clk 0:02:36.4]} 19. Rxe8
{[%clk 0:02:11.6]} 19... Rxe8 {[%clk 0:02:35.6]} 20. Re1 {[%clk 0:02:12.2]}
20... f6 {[%clk 0:02:31.3]} 21. Bf4 {[%clk 0:02:06.7]} 21... Bf7 {[%clk
0:02:31]} 22. a3 {[%clk 0:02:01.5]} 22... Rxe1+ {[%clk 0:02:24.3]} 23. Qxe1
{[%clk 0:02:00.4]} 23... Qa4 {[%clk 0:02:23.3]} 24. Qd2 {[%clk 0:01:54.3]} 24...
Qe4 {[%clk 0:02:22.6]} 25. Bd6 {[%clk 0:01:40.1]} 25... Bxd6 {[%clk 0:01:32.8]}
26. Qxd6 {[%clk 0:01:39.7]} 26... h5 {[%clk 0:01:33.3]} 27. Ne3 {[%clk
0:01:22.4]} 27... Qb1+ {[%clk 0:01:33.3]} 28. Kh2 {[%clk 0:01:22.8]} 28... Qxb2
{[%clk 0:01:32.1]} 29. Qxc5 {[%clk 0:01:22.8]} 29... Qxf2 {[%clk 0:01:30.4]} 30.
Qxa7 {[%clk 0:01:17.8]} 30... Bg6 {[%clk 0:01:21.2]} 31. Qd4 {[%clk 0:01:02.8]}
31... h4 {[%clk 0:01:08.9]} 32. Qg4 {[%clk 0:00:47]} 32... Kh7 {[%clk
0:00:53.2]} 33. Nd5 {[%clk 0:00:45.8]} 33... Bf7 {[%clk 0:00:38]} 34. Nf4 {[%clk
0:00:39.2]} 34... g5 {[%clk 0:00:37.2]} 35. Nd3 {[%clk 0:00:30.3]} 35... Qe3
{[%clk 0:00:31.8]} 36. Qf5+ {[%clk 0:00:30.6]} 36... Kg7 {[%clk 0:00:32.3]} 37.
Nf2 {[%clk 0:00:24.8]} 37... Be6 {[%clk 0:00:25.3]} 38. Qc2 {[%clk 0:00:19.5]}
38... Qg3+ {[%clk 0:00:20.6]} 39. Kg1 {[%clk 0:00:19.7]} 39... Bd5 {[%clk
0:00:21.3]} 40. Ng4 {[%clk 0:00:19.8]} 40... f5 {[%clk 0:00:18.4]} 41. c4 {[%clk
0:00:16]} 41... fxg4 {[%clk 0:00:15.1]} 42. cxd5 {[%clk 0:00:15.7]} 42... gxh3
{[%clk 0:00:15.8]} 43. Qb2+ {[%clk 0:00:13.8]} 43... Kg6 {[%clk 0:00:16.1]} 44.
Qc2+ {[%clk 0:00:13.9]} 44... Kh6 {[%clk 0:00:12.2]} 45. Qf2 {[%clk 0:00:07.2]}
45... h2+ {[%clk 0:00:11.2]} 0-1

[Event "Early-Titled-Tuesday-Blitz-September-26-2023"]
[Site "Chess.com"]
[Date "2023.09.26"]
[Round "1"]
[White "ploxoi"]
[Black "Aygehovit1992"]
[Result "0-1"]
[WhiteElo "2424"]
[BlackElo "2723"]
[TimeControl "180+1"]
[EndTime "8:07:36 PDT"]
[Termination "Aygehovit1992 won by resignation"]

1. d4 {[%clk 0:03:00.9]} 1... Nf6 {[%clk 0:02:59.5]} 2. c4 {[%clk 0:03:01.5]}
2... c5 {[%clk 0:02:59.7]} 3. d5 {[%clk 0:03:01.2]} 3... e5 {[%clk 0:02:58.6]}
4. Nc3 {[%clk 0:03:01.3]} 4... d6 {[%clk 0:02:58.7]} 5. e4 {[%clk 0:03:02]} 5...
g6 {[%clk 0:02:56.6]} 6. Nf3 {[%clk 0:03:02.3]} 6... h5 {[%clk 0:02:55.4]} 7. g3
{[%clk 0:02:59.8]} 7... Nbd7 {[%clk 0:02:51.8]} 8. Bg2 {[%clk 0:02:59]} 8... a6
{[%clk 0:02:50.9]} 9. a4 {[%clk 0:02:56.8]} 9... Rb8 {[%clk 0:02:42.6]} 10. h3
{[%clk 0:02:50.4]} 10... Qe7 {[%clk 0:02:35.1]} 11. O-O {[%clk 0:02:48.6]} 11...
Bh6 {[%clk 0:02:35]} 12. Bxh6 {[%clk 0:02:36.3]} 12... Rxh6 {[%clk 0:02:35.9]}
13. Qd2 {[%clk 0:02:36.9]} 13... Ng8 {[%clk 0:02:36]} 14. Ne1 {[%clk 0:02:34.3]}
14... g5 {[%clk 0:02:34.6]} 15. Nd3 {[%clk 0:02:32.4]} 15... a5 {[%clk
0:02:22.7]} 16. f4 {[%clk 0:02:29.5]} 16... gxf4 {[%clk 0:02:22.5]} 17. gxf4
{[%clk 0:02:29.6]} 17... Rg6 {[%clk 0:02:16.8]} 18. Kh2 {[%clk 0:02:28.5]} 18...
Qh4 {[%clk 0:02:12.5]} 19. Qf2 {[%clk 0:02:25.1]} 19... Qxf2 {[%clk 0:02:12.1]}
20. Rxf2 {[%clk 0:02:26]} 20... f6 {[%clk 0:02:05.9]} 21. Nb5 {[%clk 0:02:24.7]}
21... Ke7 {[%clk 0:02:06.1]} 22. fxe5 {[%clk 0:02:21.5]} 22... fxe5 {[%clk
0:02:04.6]} 23. Raf1 {[%clk 0:02:21.1]} 23... Rf6 {[%clk 0:02:04.8]} 24. Bf3
{[%clk 0:02:19.2]} 24... Nb6 {[%clk 0:01:43.8]} 25. b3 {[%clk 0:02:18.5]} 25...
h4 {[%clk 0:01:39]} 26. Rg1 {[%clk 0:02:17]} 26... Bd7 {[%clk 0:01:39.4]} 27.
Rg7+ {[%clk 0:02:16.6]} 27... Kf8 {[%clk 0:01:31.2]} 28. Rgg2 {[%clk 0:02:09.8]}
28... Bxb5 {[%clk 0:01:23.2]} 29. axb5 {[%clk 0:02:08.2]} 29... a4 {[%clk
0:01:22.8]} 30. Bh5 {[%clk 0:02:02.4]} 30... Rxf2 {[%clk 0:01:12.5]} 31. Rxf2+
{[%clk 0:02:01.7]} 31... Kg7 {[%clk 0:01:13.1]} 32. bxa4 {[%clk 0:01:52.7]}
32... Nxc4 {[%clk 0:01:10.4]} 33. Rf7+ {[%clk 0:01:52.5]} 33... Kh6 {[%clk
0:01:09.5]} 34. Be2 {[%clk 0:01:53.2]} 34... Nd2 {[%clk 0:01:05.2]} 35. Nf2
{[%clk 0:01:51]} 35... Ra8 {[%clk 0:00:52.4]} 36. Bd1 {[%clk 0:01:29]} 36...
Nf1+ {[%clk 0:00:51.8]} 37. Kg1 {[%clk 0:01:26.9]} 37... Ng3 {[%clk 0:00:51.1]}
38. Rd7 {[%clk 0:01:21.1]} 38... Nf6 {[%clk 0:00:45.5]} 39. Rxd6 {[%clk
0:01:21.2]} 39... Kg5 {[%clk 0:00:46.1]} 40. Bc2 {[%clk 0:01:21.5]} 40... Rg8
{[%clk 0:00:40.2]} 41. Re6 {[%clk 0:01:21.2]} 41... Ne2+ {[%clk 0:00:31.4]} 42.
Kf1 {[%clk 0:01:18.6]} 42... Nd4 {[%clk 0:00:30]} 43. Rxe5+ {[%clk 0:01:07.6]}
43... Kf4 {[%clk 0:00:29.9]} 44. Nd3+ {[%clk 0:01:08.2]} 44... Ke3 {[%clk
0:00:24.6]} 45. Bb1 {[%clk 0:01:08.2]} 45... Rf8 {[%clk 0:00:14.8]} 46. Kg2
{[%clk 0:00:34.6]} 46... Rg8+ {[%clk 0:00:14.3]} 47. Kf1 {[%clk 0:00:32.2]}
47... Rg3 {[%clk 0:00:13.8]} 48. Nf2 {[%clk 0:00:30.8]} 48... Rf3 {[%clk
0:00:10.8]} 49. d6 {[%clk 0:00:19.2]} 49... Rxf2+ {[%clk 0:00:11.1]} 50. Kg1
{[%clk 0:00:20]} 50... Nf3+ {[%clk 0:00:11.3]} 0-1